Workbook

Sheet Лист1
A1: Примерное меню завтраков для обучающихся 1-4-х классов
A2: Основание:
A3: 1. Санитарно-эпидемиологические правила и нормы СанПиН 2,3/2,4,3590-20, Утверждены постановлением Главного государственного санитарного врача Российской Федерации от 27 октября 2020г. №32
A4: 2. Сборник рецептур на продукцию для обучающихся во всех образовательных учреждениях. Под ред. М.П.Могильного и В.А.Тутельяна. - М.:ДеЛи плюс,2015 и 2017 года
A5: День: | B5: первый
A6: Неделя: | B6: первая
A8: № рецептуры | B8: Приём пищи, наименование блюда | C8: Масса порции (г) | D8: Пищевые вещества (г.) | G8: Энергетическая ценность (ккал) | H8: Витамины (мг.) | L8: Минеральные вещества (мг.)
D9: Б | E9: Ж | F9: У | H9: В1 | I9: С | J9: А | K9: Е | L9: Са | M9: Р | N9: Мg | O9: Fe
A10: 401 | B10: Оладьи | C10: 105 | D10: 7.42 | E10: 7.86 | F10: 36.5 | G10: 282.85 | I10: 1.76 | L10: 33.38 | M10: 2.7 | N10: 49.77 | O10: 2.5
B11: с повидлом | C11: 45 | D11: 0 | E11: 0 | F11: 29.25 | G11: 117 | H11: 0.3 | I11: 0.27 | L11: 0.63 | M11: 0.5 | N11: 0.81 | O11: 3.24
A12: 377 | B12: Чай с сахаром и лимоном 195/5 | C12: 200 | D12: 0.13 | E12: 0.02 | F12: 9.9 | G12: 29.5 | I12: 2.8 | K12: 0.01 | L12: 14.9 | M12: 4.3 | N12: 2.3 | O12: 0.34
A13: 338 | B13: Фрукты (яблоки) | C13: 170 | D13: 0.68 | E13: 0.68 | F13: 16.66 | G13: 79.9 | H13: 0.01 | I13: 39.79 | J13: 57.8 | K13: 0.42 | L13: 62.9 | M13: 34 | N13: 20.4 | O13: 0.34
B14: соль йодированная | C14: 1
A15: ИТОГО: | C15: =SUM(C10:C13) -> 520 | D15: 8.23 | E15: 8.56 | F15: 92.31 | G15: 509.25 | H15: 0.31 | I15: 44.62 | J15: 57.8 | K15: 0.43 | L15: 111.81 | M15: 41.5 | N15: 73.28 | O15: 6.42
A17: День: | B17: второй
A18: Неделя: | B18: первая
A20: № рецептуры | B20: Приём пищи, наименование блюда | C20: Масса порции (г) | D20: Пищевые вещества (г.) | G20: Энергетическая ценность (ккал) | H20: Витамины (мг.) | L20: Минеральные вещества (мг.)
D21: Б | E21: Ж | F21: У | H21: В1 | I21: С | J21: А | K21: Е | L21: Са | M21: Р | N21: Мg | O21: Fe
A22: 175 | B22: Каша «Дружба» молочная с маслом слив. (рис, пшено) | C22: 250 | D22: 7.6 | E22: 12.25 | F22: 39.15 | G22: 296.87 | H22: 0.1 | I22: 0.8 | J22: 20.9 | K22: - | L22: 17.1 | M22: 180.6 | N22: 38.6 | O22: 0.75
A23: 382 | B23: Какао с молоком | C23: 200 | D23: 4.08 | E23: 3.54 | F23: 17.58 | G23: 118.6 | H23: 0.05 | I23: 1.3 | J23: 24.4 | L23: 133.2 | M23: 124.5 | N23: 25.5 | O23: 2
A24: б/н | B24: батон нарезной | C24: 30 | D24: 2.25 | E24: 0.84 | F24: 15.51 | G24: 85.8 | H24: 0.3 | I24: - | J24: - | K24: 0.39 | L24: 6.9 | M24: 26.1 | N24: 9.9 | O24: 0.33
A25: 338 | B25: Фрукты (яблоки) | C25: 100 | D25: 0.4 | E25: 0.4 | F25: 9.8 | G25: 47 | H25: 0.01 | I25: 16.9 | J25: 23.8 | K25: 0.2 | L25: 25.9 | M25: 14 | N25: 8.4 | O25: 0.14
B26: Соль йодированная | C26: 1
A27: ИТОГО: | C27: =SUM(C22:C25) -> 580 | D27: 14.33 | E27: 17.03 | F27: 82.04 | G27: 548.27 | H27: =SUM(H22:H25) -> 0.46 | I27: =SUM(I22:I25) -> 19 | J27: 69.1 | K27: 0.59 | L27: 183.1 | M27: 345.2 | N27: 82.4 | O27: 3.22
A30: День: | B30: третий
A31: Неделя: | B31: первая
A33: № рецептуры | B33: Приём пищи, наименование блюда | C33: Масса порции (г) | D33: Пищевые вещества (г.) | G33: Энергетическая ценность (ккал) | H33: Витамины (мг.) | L33: Минеральные вещества (мг.)
D34: Б | E34: Ж | F34: У | H34: В1 | I34: С | J34: А | K34: Е | L34: Са | M34: Р | N34: Мg | O34: Fe
A35: 259 | B35: Жаркое по-домашнему (свинина нежирных сортов) | C35: 250 | D35: 17.6 | E35: 42.1 | F35: 23.6 | G35: 547.1 | H35: 0.5 | I35: 9.62 | K35: 4.37 | L35: 41 | M35: 207.37 | N35: 6 | O35: 3.4
A36: 376 | B36: Чай с сахаром | C36: 200 | D36: 0.1 | E36: 0.02 | F36: 7 | G36: 28.6 | H36: - | I36: 1.6 | J36: - | L36: 11.1 | M36: 2.8 | N36: 1.4 | O36: 0.03
A37: б/н | B37: Хлеб ржаной | C37: 40 | D37: 1.87 | E37: 0.63 | F37: 10.7 | G37: 56 | H37: 0.05 | I37: - | J37: - | K37: 0.48 | L37: 12.26 | M37: 56.53 | N37: 13.33 | O37: 1.65
B38: Шоколад | C38: 15 | D38: 1.05 | E38: 5.1 | F38: 7.5 | G38: 82.5
B39: Соль йодированная | C39: 1
A40: ИТОГО: | C40: =SUM(C35:C38) -> 505 | D40: 20.62 | E40: 47.85 | F40: 48.8 | G40: 714.2 | H40: 0.55 | I40: 11.22 | J40: 0 | K40: 4.85 | L40: 64.36 | M40: 266.7 | N40: 20.73 | O40: 5.08
A42: День: | B42: четвертый
A43: Неделя: | B43: первая
A45: № рецептуры | B45: Приём пищи, наименование блюда | C45: Масса порции (г) | D45: Пищевые вещества (г.) | G45: Энергетическая ценность (ккал) | H45: Витамины (мг.) | L45: Минеральные вещества (мг.)
D46: Б | E46: Ж | F46: У | H46: В1 | I46: С | J46: А | K46: Е | L46: Са | M46: Р | O46: Fe
A47: 174 | B47: Каша рисовая молочная с маслом сливочным | C47: 200 | D47: 15.48 | E47: 27.58 | F47: 45.58 | G47: 321.83 | H47: 0.06 | I47: 0.96 | J47: 54.8 | L47: 85.36 | M47: 157.4 | N47: 36.48 | O47: 0.6
A48: 376 | B48: Чай с сахаром и лимоном | C48: 200 | D48: 0.13 | E48: 0.02 | F48: 9.9 | G48: 29.5 | I48: 2.8 | K48: 0.01 | L48: 14.9 | M48: 4.3 | N48: 2.3 | O48: 0.34
A49: б/н | B49: Батон нарезной | C49: 40 | D49: 3 | E49: 1.16 | F49: 20.36 | G49: 105.6 | H49: 0.57 | K49: 0.52 | L49: 9.25 | M49: 34.85 | N49: 11.6 | O49: 0.39
A50: 338 | B50: Фрукты (яблоки) | C50: 150 | D50: 0.6 | E50: 0.6 | F50: 14.7 | G50: 70.5 | H50: 0.03 | I50: 15 | K50: 0.3 | L50: 24 | M50: 16.5 | N50: 13.5 | O50: 3.3
B51: Соль йодированная | C51: 1
A52: ИТОГО: | C52: =SUM(C47:C50) -> 590 | D52: 19.21 | E52: 29.36 | F52: 90.54 | G52: 527.43 | H52: =SUM(H47:H50) -> 0.66 | I52: =SUM(I47:I50) -> 18.76 | J52: 54.8 | K52: 0.83 | L52: 133.51 | M52: 213.05 | N52: 63.88 | O52: 4.63
A54: День: | B54: пятый
A55: Неделя: | B55: первая
A57: № рецептуры | B57: Приём пищи, наименование блюда | C57: Масса порции (г) | D57: Пищевые вещества (г.) | G57: Энергетическая ценность (ккал) | H57: Витамины (мг.) | L57: Минеральные вещества (мг.)
D58: Б | E58: Ж | F58: У | H58: В1 | I58: С | J58: А | K58: Е | L58: Са | M58: Р | N58: Мg | O58: Fe
A59: 398 | B59: Блинчики с фруктовой начинкой с соусом из свежезамороженных ягод 180/30 | C59: 210 | D59: 5.90 | E59: 8.09 | F59: 121.30 | G59: 558.70 | H59: 0.10 | I59: 16.10 | J59: 63.00 | L59: 41.30 | M59: 80.20 | N59: 30.40 | O59: 2.20
A60: 376 | B60: Чай с сахаром | C60: 200 | D60: 0.10 | E60: 0.02 | F60: 7.00 | G60: 28.60 | I60: 1.60 | L60: 11.10 | M60: 2.80 | N60: 1.40 | O60: 0.03
A61: б/н | B61: Фрукты (яблоки) | C61: 100 | D61: 0.4 | E61: 0.4 | F61: 9.8 | G61: 47 | H61: 0.02 | I61: 10 | J61: - | K61: 0.2 | L61: 16 | M61: 11 | N61: 9 | O61: 2.2
B62: Соль йодированная | C62: 1
A63: ИТОГО: | C63: =SUM(C59:C61) -> 510.00 | D63: 6.40 | E63: 8.51 | F63: 138.10 | G63: 634.30 | H63: 0.12 | I63: 27.70 | J63: 63.00 | K63: 0.20 | L63: 68.40 | M63: 94.00 | N63: 40.80 | O63: 4.43
A65: День: | B65: шестой
A66: Неделя: | B66: вторая
A68: № рецептуры | B68: Приём пищи, наименование блюда | C68: Масса порции (г) | D68: Пищевые вещества (г.) | G68: Энергетическая ценность (ккал) | H68: Витамины (мг.) | L68: Минеральные вещества (мг.)
D69: Б | E69: Ж | F69: У | H69: В1 | I69: С | J69: А | K69: Е | L69: Са | M69: Р | N69: Мg | O69: Fe
A70: 173 | B70: Каша вязкая молочная пшенная с маслом сливочным | C70: 250 | D70: 8.62 | E70: 13.25 | F70: 76.96 | G70: 426.12 | H70: 0.19 | J70: 6.25 | K70: 0.15 | L70: 5.09 | M70: 163.79 | N70: 56.3 | O70: 3.15
A71: 377 | B71: Чай с сахаром и лимоном 195/5 | C71: 200 | D71: 0.13 | E71: 0.02 | F71: 9.9 | G71: 29.5 | I71: 2.8 | K71: 0.01 | L71: 14.9 | M71: 4.3 | N71: 2.3 | O71: 0.34
A72: б/н | B72: батон нарезной | C72: 40 | D72: 3 | E72: 1.12 | F72: 20.68 | G72: 114.4 | H72: 0.57 | K72: 0.52 | L72: 9.25 | M72: 34.85 | N72: 11.6 | O72: 0.39
A73: 15 | B73: сыр | C73: 15 | D73: 3.48 | E73: 4.42 | G73: 54 | H73: 0.01 | I73: 0.11 | J73: 56.52 | K73: 0.1 | L73: 191.3 | M73: 108.7 | N73: 7.6 | O73: 0.2
B74: Хлеб ржаной | C74: 30 | D74: 1.4 | E74: 0.47 | F74: 7.8 | G74: 42 | H74: 0.04 | K74: 0.36 | L74: 9.2 | M74: 42.4 | N74: 10 | O74: 1.24
B75: Соль йодированная | C75: 1
A76: ИТОГО: | C76: =SUM(C70:C74) -> 535 | D76: 16.63 | E76: 19.28 | F76: 115.34 | G76: 666.02 | H76: =SUM(H70:H74) -> 0.81 | I76: =SUM(I70:I74) -> 2.91 | J76: 62.77 | K76: 1.14 | L76: 229.74 | M76: 354.04 | N76: 87.8 | O76: 5.32
A78: День: | B78: седьмой
A79: Неделя: | B79: вторая
A81: № рецептуры | B81: Приём пищи, наименование блюда | C81: Масса порции (г) | D81: Пищевые вещества (г.) | G81: Энергетическая ценность (ккал) | H81: Витамины (мг.) | L81: Минеральные вещества (мг.)
D82: Б | E82: Ж | F82: У | H82: В1 | I82: С | J82: А | K82: Е | L82: Са | M82: Р | N82: Мg | O82: Fe
A83: 243 | B83: Сосиски отварные для детского питания | C83: 100 | D83: 10.4 | E83: 23.9 | F83: 0.4 | G83: 260.5 | K83: 0.6 | L83: 19.2 | M83: 98.6 | N83: 5.6 | O83: 1.2
A84: 202 (309) | B84: Макароны отварные с маслом сливочным | C84: 165 | D84: 6.05 | E84: 4.95 | F84: 29.04 | G84: 185.24 | H84: 0.1 | K84: 1.09 | L84: 5.28 | M84: 40.92 | N84: 23.21 | O84: 1.19
A85: 377 | B85: Чай с сахаром и лимоном 195/5 | C85: 200 | D85: 0.13 | E85: 0.02 | F85: 9.9 | G85: 29.5 | I85: 2.8 | K85: 0.01 | L85: 14.9 | M85: 4.3 | N85: 2.3 | O85: 0.34
B86: Хлеб ржаной | C86: 35 | D86: 0.6 | E86: 0.5 | F86: 9.1 | G86: 49 | H86: 0.04 | K86: 0.42 | L86: 10.73 | M86: 49.46 | N86: 11.6 | O86: 1.4
B87: Соль йодированная | C87: 1
A88: ИТОГО: | C88: =SUM(C83:C86) -> 500 | D88: 17.18 | E88: 29.37 | F88: 48.44 | G88: 524.24 | H88: =SUM(H83:H86) -> 0.14 | I88: =SUM(I83:I86) -> 2.8 | J88: 0 | K88: 2.12 | L88: 50.11 | M88: 193.28 | N88: 42.71 | O88: 4.13
A90: День | B90: восьмой
A91: неделя | B91: вторая
A92: № рецептуры | B92: Приём пищи, наименование блюда | C92: Масса порции (г) | D92: Пищевые вещества (г.) | G92: Энергетическая ценность (ккал) | H92: Витамины (мг.) | L92: Минеральные вещества (мг.)
D93: Б | E93: Ж | F93: У | H93: В1 | I93: С | J93: А | K93: Е | L93: Са | M93: Р | N93: Мg | O93: Fe
A94: 175 | B94: Каша «Дружба» молочная с маслом слив. (рис, пшено) | C94: 250 | D94: 7.6 | E94: 12.25 | F94: 39.15 | G94: 296.87 | H94: 0.1 | I94: 0.8 | J94: 20.9 | K94: - | L94: 17.1 | M94: 180.6 | N94: 38.6 | O94: 0.75
A95: 382 | B95: Какао с молоком | C95: 200 | D95: 4.08 | E95: 3.54 | F95: 17.58 | G95: 118.6 | H95: 0.05 | I95: 1.3 | J95: 24.4 | L95: 133.2 | M95: 124.5 | N95: 25.5 | O95: 2
A96: б/н | B96: батон нарезной | C96: 30 | D96: 2.25 | E96: 0.84 | F96: 15.51 | G96: 85.8 | H96: 0.3 | I96: - | J96: - | K96: 0.39 | L96: 6.9 | M96: 26.1 | N96: 9.9 | O96: 0.33
A97: 338 | B97: Фрукты (яблоки) | C97: 100 | D97: 0.28 | E97: 0.28 | F97: 8.4 | G97: 37.1 | H97: 0.01 | I97: 16.9 | J97: 23.8 | K97: 0.2 | L97: 25.9 | M97: 14 | N97: 8.4 | O97: 0.14
B98: Соль йодированная | C98: 1
A99: ИТОГО: | C99: =SUM(C94:C97) -> 580 | D99: 14.21 | E99: 16.91 | F99: 80.64 | G99: 538.37 | H99: =SUM(H94:H97) -> 0.46 | I99: =SUM(I94:I97) -> 19 | J99: 69.1 | K99: 0.59 | L99: 183.1 | M99: 345.2 | N99: 82.4 | O99: 3.22
A101: День | B101: девятый
A102: неделя | B102: вторая
A104: № рецептуры | B104: Приём пищи, наименование блюда | C104: Масса порции (г) | D104: Пищевые вещества (г.) | G104: Энергетическая ценность (ккал) | H104: Витамины (мг.) | L104: Минеральные вещества (мг.)
D105: Б | E105: Ж | F105: У | H105: В1 | I105: С | J105: А | K105: Е | L105: Са | M105: Р | N105: Мg | O105: Fe
A106: 401 | B106: Оладьи | C106: 105 | D106: 7.42 | E106: 7.86 | F106: 36.5 | G106: 282.85 | I106: 1.76 | L106: 33.38 | M106: 2.7 | N106: 49.77 | O106: 2.5
B107: с повидлом | C107: 45 | D107: 0 | E107: 0 | F107: 29.25 | G107: 117 | H107: 0.3 | I107: 0.27 | L107: 0.63 | M107: 0.5 | N107: 0.81 | O107: 3.24
A108: 379 | B108: Чай с сахаром | C108: 200 | D108: 0.1 | E108: 0.02 | F108: 7 | G108: 28.6 | I108: 1.6 | L108: 11.1 | M108: 2.8 | N108: 1.4 | O108: 0.03
A109: 338 | B109: Фрукты | C109: 170 | D109: 0.68 | E109: 0.68 | F109: 16.66 | G109: 79.9 | H109: 0.01 | I109: 39.79 | J109: 57.8 | K109: 0.42 | L109: 62.9 | M109: 34 | N109: 20.4 | O109: 0.34
B110: Шоколад | C110: 15 | D110: 1.05 | E110: 5.1 | F110: 7.5 | G110: 82.5
A111: ИТОГО: | C111: =SUM(C106:C109) -> 520 | D111: 8.2 | E111: 8.56 | F111: 89.41 | G111: 508.35 | H111: =SUM(H106:H109) -> 0.31 | I111: =SUM(I106:I109) -> 43.42 | J111: 57.8 | K111: 0.42 | L111: 108.01 | M111: 40 | N111: 72.38 | O111: 6.11
A113: День | B113: десятый
A114: Неделя | B114: вторая
A115: № рецептуры | B115: Приём пищи, наименование блюда | C115: Масса порции (г) | D115: Пищевые вещества (г.) | G115: Энергетическая ценность (ккал) | H115: Витамины (мг.) | L115: Минеральные вещества (мг.)
D116: Б | E116: Ж | F116: У | H116: В1 | I116: С | J116: А | K116: Е | L116: Са | M116: Р | N116: Мg | O116: Fe
A117: 174 | B117: Каша рисовая молочная с маслом сливочным | C117: 250 | D117: 7.5 | E117: 13.6 | F117: 53.7 | G117: 367.5 | H117: 0.075 | I117: 1.2 | J117: 68.5 | L117: 160.7 | M117: 196.75 | N117: 45.6 | O117: 0.75
A118: 382 | B118: Какао с молоком | C118: 180 | D118: 3.67 | E118: 3.18 | F118: 15.82 | G118: 106.74 | H118: 0.04 | I118: 1.17 | J118: 21.96 | L118: 119.88 | M118: 112.05 | N118: 22.95 | O118: 1.8
A119: б/н | B119: Батон нарезной | C119: 40 | D119: 3 | E119: 1.12 | F119: 20.68 | G119: 114.4 | H119: 0.57 | K119: 0.52 | L119: 9.25 | M119: 34.85 | N119: 11.6 | O119: 0.39
B120: Фрукты (яблоки) | C120: 100 | D120: 0.28 | E120: 0.28 | F120: 8.4 | G120: 37.1 | H120: 0.01 | I120: 16.9 | J120: 23.8 | K120: 0.2 | L120: 25.9 | M120: 14 | N120: 8.4 | O120: 0.14
B121: Соль йодированная | C121: 1
A122: ИТОГО: | C122: =SUM(C117:C120) -> 570 | D122: 14.45 | E122: 18.18 | F122: 98.6 | G122: 625.74 | H122: 0.695 | I122: 19.27 | J122: 114.26 | K122: 0.72 | L122: 315.73 | M122: 357.65 | N122: 88.55 | O122: 3.08
A124: Основные показатели в пищевых веществах и энергетической ценности (к СанПиН 2.3/2.4.3590-20)
A125: Основные показатели | B125: Пищевые вещества (г) | E125: Энергетическая ценность (ккал)
A127: Дни по меню
B128: Б | C128: Ж | D128: У
A129: 1 день | B129: 8.23 | C129: 8.56 | D129: 92.31 | E129: 509.25
A130: 2 день | B130: 14.33 | C130: 17.03 | D130: 82.04 | E130: 548.27
A131: 3 день | B131: 20.62 | C131: 47.85 | D131: 48.8 | E131: 714.2
A132: 4 день | B132: 19.21 | C132: 29.36 | D132: 90.54 | E132: 527.43
A133: 5 день | B133: 6.4 | C133: 8.51 | D133: 138.1 | E133: 634.3
A134: 6 день | B134: 16.63 | C134: 19.28 | D134: 115.34 | E134: 666.02
A135: 7 день | B135: 17.18 | C135: 29.37 | D135: 48.44 | E135: 524.24
A136: 8 день | B136: 14.21 | C136: 16.91 | D136: 80.64 | E136: 538.37
A137: 9 день | B137: 8.2 | C137: 8.56 | D137: 89.41 | E137: 508.35
A138: 10 день | B138: 14.45 | C138: 18.18 | D138: 98.6 | E138: 625.74
A139: Итого за весь период: | B139: =SUM(B129:B138) -> 139.46 | C139: =SUM(C129:C138) -> 203.61 | D139: 884.22 | E139: 5796.17
A140: Итого в среднем за 1день (прием пищи): | B140: =SUM(B139/10) -> 13.946 | C140: =SUM(C139/10) -> 20.361 | D140: 88.422 | E140: 579.617
A141: Завтрак – 20-25% от нормы | B141: 20-25% - от нормы - 77.00, составит | C141: 20-25% - от нормы - 79.00, составит 15.80 – 19.75 | D141: 20-25% - от нормы - 335.00, составит 67.00 – 83.75 | E141: 20-25% - от нормы - 2350.00, составит 470.00 – 587.50
B142: 15.40 – 19.25

Sheet Лист2
A1: 2.4
A2: 0.2
A3: 0.34
A4: 2.2
A6: =SUM(A1:A4) -> 5.14
A10: 0.75
A11: 2
A12: 0.33
A13: 0.2
A16: 2.5
A17: 1.8
A18: 0.33
A19: 0.2
A21: 4.83
A24: 1.8
A25: 0.03
A26: 2.9
A28: 4.73
